bitfinex/quotes_BTCUSD_20250530
["timestamp","ask_amount","ask_price","bid_price","bid_amount"]
[1748586662706,0.19828146,105910.0,105900.0,0.42091395]
[1748586663549,0.15828146,105910.0,105900.0,0.42091395]
[1748586663760,0.15828146,105910.0,105900.0,0.39061395]
[1748586665322,0.15828146,105910.0,105900.0,0.40651395]
[1748586665577,0.15828146,105910.0,105900.0,0.09405395]
[1748586665787,0.17458146,105910.0,105900.0,0.48321395]
[1748586667110,0.15828146,105910.0,105900.0,0.48321395]
[1748586669997,0.15828146,105910.0,105900.0,0.68151414]
[1748586670224,0.00944188,105910.0,105900.0,0.73139907]
[1748586670438,0.00944171,105910.0,105900.0,0.74084113]
[1748586670664,0.00944188,105910.0,105900.0,0.74084131]
[1748586671086,0.20772326,105910.0,105900.0,0.73139925]
[1748586671311,0.20772326,105910.0,105900.0,0.003]
[1748586671312,0.24072326,105910.0,105900.0,0.003]
[1748586671536,0.31668585,105910.0,105900.0,0.003]
[1748586673739,0.24072326,105910.0,105900.0,0.003]
[1748586677050,0.33177721,105910.0,105900.0,0.003]
[1748586679846,0.67177721,105910.0,105900.0,0.003]
[1748586680310,0.68631806,105910.0,105900.0,0.003]
[1748586680795,0.67177721,105910.0,105900.0,0.003]
[1748586681285,0.2310001,105900.0,105890.0,9.25e-05]
[1748586682416,0.2310001,105900.0,105890.0,0.2992525]
[1748586683293,0.2310001,105900.0,105890.0,0.3002525]
[1748586691020,0.2310001,105900.0,105890.0,0.0030925]
[1748586691252,0.2310001,105900.0,105890.0,0.3008925]
[1748586691704,0.1983001,105900.0,105890.0,0.3008925]
[1748586691909,0.2313001,105900.0,105890.0,0.3008925]
[1748586692831,0.1983001,105900.0,105890.0,0.3008925]
[1748586693249,0.2147001,105900.0,105890.0,0.3008925]
[1748586696164,0.2312001,105900.0,105890.0,0.3011325]
[1748586701168,0.2147001,105900.0,105890.0,0.3011325]
[1748586701791,0.2147001,105900.0,105890.0,0.61558774]
[1748586701792,0.1983001,105900.0,105890.0,0.61558774]
[1748586701998,0.1983001,105900.0,105890.0,0.4267125]
[1748586703076,0.1983001,105900.0,105890.0,0.4264325]
[1748586703283,0.1983001,105900.0,105890.0,0.3945325]
[1748586705996,0.2141001,105900.0,105890.0,0.3945325]
[1748586706606,0.2293001,105900.0,105890.0,0.3945325]
[1748586707255,0.2141001,105900.0,105890.0,0.3945325]
[1748586707457,0.1983001,105900.0,105890.0,0.3945325]
[1748586709287,0.02832726,105900.0,105890.0,0.72554876]
[1748586709499,0.01888457,105900.0,105890.0,0.71610536]
[1748586709689,0.01888457,105900.0,105890.0,0.73499189]
[1748586709894,0.02832726,105900.0,105890.0,0.73499189]
[1748586710383,0.02832726,105900.0,105890.0,1.07499189]
[1748586710584,0.21718467,105900.0,105890.0,1.05610536]
[1748586710789,0.20774252,105900.0,105890.0,1.05610536]
[1748586711000,0.20774252,105900.0,105890.0,1.06554885]
[1748586711232,0.20774252,105900.0,105890.0,1.07499225]
[1748586712075,0.21718539,105900.0,105890.0,1.08443556]
[1748586712320,0.20774297,105900.0,105890.0,0.85778645]
[1748586712731,0.20774297,105900.0,105890.0,0.85828645]
[1748586713656,0.19830028,105900.0,105890.0,1.05660536]
[1748586713902,0.19830028,105900.0,105890.0,0.86770679]
[1748586714552,0.18885741,105900.0,105890.0,0.86770679]
[1748586714772,0.18885741,105900.0,105890.0,0.56994679]
[1748586714994,0.18885741,105900.0,105890.0,0.86786679]
[1748586715942,0.18885741,105900.0,105890.0,1.07562928]
[1748586716196,0.19830019,105900.0,105890.0,1.08507268]
[1748586716449,0.2077427,105900.0,105890.0,1.0945159]
[1748586716678,0.2077427,105900.0,105890.0,1.08507268]
[1748586717594,0.19830019,105900.0,105890.0,0.87731055]
[1748586717882,0.18885741,105900.0,105890.0,0.56994679]
[1748586718099,0.18885741,105900.0,105890.0,0.86834679]
[1748586719019,0.18885741,105900.0,105890.0,0.86842679]
[1748586719898,0.18885741,105900.0,105890.0,0.83622679]
[1748586720132,0.18885741,105900.0,105890.0,0.44406679]
[1748586720378,0.21925741,105900.0,105890.0,0.83606679]
[1748586721042,0.21925741,105900.0,105890.0,0.44406679]
[1748586721274,0.21925741,105900.0,105890.0,0.83638679]
[1748586724623,0.18885741,105900.0,105890.0,1.04096203]
[1748586724847,0.20774252,105900.0,105890.0,1.0663057]
[1748586725071,0.20774252,105900.0,105890.0,0.86798679]
[1748586725282,0.1983001,105900.0,105890.0,0.86798679]
[1748586726149,0.1983001,105900.0,105890.0,0.83638679]
[1748586726619,0.2305001,105900.0,105890.0,0.83634679]
[1748586726861,0.2305001,105900.0,105890.0,0.19806679]
[1748586727085,0.2305001,105900.0,105890.0,0.49630679]
[1748586728592,0.2305001,105900.0,105890.0,0.09464645]
[1748586728813,0.2305001,105900.0,105890.0,0.3017125]
[1748586729913,0.2305001,105900.0,105890.0,0.0035925]
[1748586730134,0.2305001,105900.0,105890.0,0.3021525]
[1748586731244,0.2305001,105900.0,105890.0,0.0035925]
[1748586731495,0.2305001,105900.0,105890.0,0.3020725]
[1748586732429,0.2305001,105900.0,105890.0,0.3022325]
[1748586732662,0.2305001,105900.0,105890.0,0.0035925]
[1748586732891,0.2305001,105900.0,105890.0,0.3021525]
[1748586733781,0.2305001,105900.0,105890.0,0.0035925]
[1748586734010,0.2305001,105900.0,105890.0,0.3019925]
[1748586737594,0.01888511,105900.0,105890.0,0.58486774]
[1748586737828,0.20774252,105900.0,105890.0,0.68536536]
[1748586738063,0.20774252,105900.0,105890.0,0.71696536]
[1748586738284,0.20774252,105900.0,105890.0,0.48704645]
[1748586738285,0.1983001,105900.0,105890.0,0.48704645]
[1748586739614,0.2148001,105900.0,105890.0,0.48704645]
[1748586740871,0.2310001,105900.0,105890.0,0.48764645]
[1748586742685,0.1983001,105900.0,105890.0,0.48764645]
[1748586743587,0.1983001,105900.0,105890.0,0.69242169]
[1748586743816,0.1983001,105900.0,105890.0,0.52869021]
[1748586744028,0.1983001,105900.0,105890.0,0.72700903]
[1748586744282,0.20774252,105900.0,105890.0,0.73645243]
[1748586747246,0.20774252,105900.0,105890.0,0.74589565]
[1748586747690,0.02832789,105900.0,105890.0,0.74589565]
[1748586747917,0.2171853,105900.0,105890.0,0.73645243]
[1748586748611,0.2171853,105900.0,105890.0,0.74589574]
[1748586753414,0.19828146,105910.0,105890.0,0.73645198]
[1748586753623,0.21716505,105910.0,105900.0,0.30115732]
[1748586753843,0.21716505,105910.0,105900.0,0.31768185]
[1748586753844,0.02832485,105910.0,105900.0,0.31768185]
[1748586754053,0.02832485,105910.0,105900.0,0.34808203]
[1748586754054,0.03776682,105910.0,105900.0,0.34808203]
[1748586754277,0.03776682,105910.0,105900.0,0.35752445]
[1748586754908,0.03776682,105910.0,105900.0,0.32712445]
[1748586755121,0.21716505,105910.0,105900.0,0.31768203]
[1748586755543,0.21716505,105910.0,105900.0,0.31968203]
[1748586756617,0.21716505,105910.0,105900.0,0.32068203]
[1748586757054,0.21716505,105910.0,105900.0,0.33012445]
[1748586758332,0.20772343,105910.0,105900.0,0.29235423]
[1748586758545,0.01888385,105910.0,105900.0,0.31123952]
[1748586758764,0.01888385,105910.0,105900.0,0.32068203]
[1748586758974,0.20772343,105910.0,105900.0,0.32068203]
[1748586759823,0.20772343,105910.0,105900.0,0.31123961]
[1748586760251,0.20772343,105910.0,105900.0,0.32068212]
[1748586760693,0.21448155,105910.0,105900.0,0.18793395]
[1748586760906,0.23088155,105910.0,105900.0,0.48537395]
[1748586761108,0.23088155,105910.0,105900.0,0.48533395]
[1748586761745,0.19088155,105910.0,105900.0,0.48533395]
[1748586763456,0.19088155,105910.0,105900.0,0.18793395]
[1748586763664,0.19088155,105910.0,105900.0,0.48517395]
[1748586765025,0.19088155,105910.0,105900.0,0.69291692]
[1748586765289,0.19088155,105910.0,105900.0,0.49461682]
[1748586765525,0.01888368,105910.0,105900.0,0.71180176]
[1748586765756,0.02832495,105910.0,105900.0,0.70235952]
[1748586765985,0.2266057,105910.0,105900.0,0.71180194]
[1748586766239,0.20772309,105910.0,105900.0,0.69291701]
[1748586766464,0.19828138,105910.0,105900.0,0.49437682]
[1748586766682,0.21438138,105910.0,105900.0,0.48493395]
[1748586767121,0.22968138,105910.0,105900.0,0.48493395]
[1748586768870,0.18968138,105910.0,105900.0,0.48493395]
[1748586770868,0.18968138,105910.0,105900.0,0.09405395]
[1748586771089,0.18968138,105910.0,105900.0,0.003]
[1748586771316,0.18968138,105910.0,105900.0,0.30024]
[1748586772422,0.18968138,105910.0,105900.0,0.003]
[1748586772669,0.18968138,105910.0,105900.0,0.30012]
[1748586773103,0.18968138,105910.0,105900.0,0.003]
[1748586773754,0.18968138,105910.0,105900.0,0.3]
[1748586774845,0.18968138,105910.0,105900.0,0.29988]
[1748586776266,0.18968138,105910.0,105900.0,0.29984]
[1748586776699,0.18968138,105910.0,105900.0,0.003]
[1748586776912,0.18968138,105910.0,105900.0,0.2998]
[1748586784764,0.18968138,105910.0,105900.0,0.003]
[1748586784977,0.18968138,105910.0,105900.0,0.29972]
[1748586785401,0.18968138,105910.0,105900.0,0.2998]
[1748586786092,0.18968138,105910.0,105900.0,0.39296]
[1748586788054,0.19828155,105910.0,105900.0,0.68231405]
[1748586788301,0.02832521,105910.0,105900.0,0.71451405]
[1748586788517,0.21716479,105910.0,105900.0,0.72395665]
[1748586789417,0.20772326,105910.0,105900.0,0.72395665]
[1748586789870,0.20772326,105910.0,105900.0,0.71451405]
[1748586790355,0.19828146,105910.0,105900.0,0.48397395]
[1748586791513,0.19828146,105910.0,105900.0,0.68227405]
[1748586791940,0.18883958,105910.0,105900.0,0.67283136]
[1748586792158,0.21893958,105910.0,105900.0,0.09405395]
[1748586792379,0.21893958,105910.0,105900.0,0.09616]
[1748586792617,0.21893958,105910.0,105900.0,0.39288]
[1748586792842,0.21893958,105910.0,105900.0,0.003]
[1748586793066,0.21893958,105910.0,105900.0,0.39284]
[1748586793288,0.21893958,105910.0,105900.0,0.3928]
[1748586793952,0.21893958,105910.0,105900.0,0.39288]
[1748586794378,0.21893958,105910.0,105900.0,0.09616]
[1748586794632,0.21893958,105910.0,105900.0,0.003]
[1748586794845,0.21893958,105910.0,105900.0,0.29968]
[1748586796402,0.21893958,105910.0,105900.0,0.29964]
[1748586796625,0.21893958,105910.0,105900.0,0.003]
[1748586796832,0.21893958,105910.0,105900.0,0.2996]
[1748586797716,0.21893958,105910.0,105900.0,0.003]
[1748586798368,0.55893958,105910.0,105900.0,0.003]
[1748586799481,0.58727858,105910.0,105900.0,0.003]
[1748586803419,0.67833253,105910.0,105900.0,0.003]
[1748586806466,0.69287338,105910.0,105900.0,0.003]
[1748586806907,0.69287338,105910.0,105900.0,0.002]
[1748586807188,0.69387338,105910.0,105900.0,0.002]
[1748586807615,0.1983001,105900.0,105890.0,0.0005925]
[1748586807844,0.32195405,105900.0,105890.0,0.0005925]
[1748586809211,0.32195405,105900.0,105890.0,0.0015925]
[1748586809664,0.32195405,105900.0,105890.0,0.0025925]
[1748586815880,0.35029605,105900.0,105890.0,0.0025925]
[1748586821453,0.3592936,105900.0,105890.0,0.0025925]
[1748586823864,0.6992936,105900.0,105890.0,0.0025925]
[1748586825166,0.6709516,105900.0,105890.0,0.0025925]
[1748586826369,0.57989765,105900.0,105890.0,0.0025925]
[1748586826613,0.20729765,105900.0,105890.0,0.0025925]
[1748586827315,0.1983001,105900.0,105890.0,0.0025925]
[1748586827746,0.1983001,105900.0,105890.0,0.0341925]
[1748586827972,0.1983001,105900.0,105890.0,0.1266325]
[1748586832465,0.1983001,105900.0,105890.0,0.1102325]
[1748586832713,0.1983001,105900.0,105890.0,0.0950325]
[1748586833148,0.1983001,105900.0,105890.0,0.3908725]
[1748586833801,0.1983001,105900.0,105890.0,0.3907925]
[1748586836249,0.1983001,105900.0,105890.0,0.4227925]
[1748586836571,0.1983001,105900.0,105890.0,0.3907925]
[1748586839600,0.1983001,105900.0,105890.0,0.4225925]
[1748586840385,0.1983001,105900.0,105890.0,0.51364645]
[1748586841894,0.01888448,105900.0,105890.0,0.73085162]
[1748586842117,0.0472121,105900.0,105890.0,0.7308518]
[1748586842539,0.04721192,105900.0,105890.0,0.74029493]
[1748586842755,0.02832663,105900.0,105890.0,0.74029493]
[1748586842993,0.03776932,105900.0,105890.0,0.74029493]
[1748586843854,0.1866089,105910.0,105900.0,0.0309]
[1748586844071,0.1866089,105910.0,105900.0,0.12195395]
[1748586844748,0.1866089,105910.0,105900.0,0.41911395]
[1748586845428,0.1876089,105910.0,105900.0,0.41911395]
[1748586846065,0.1886089,105910.0,105900.0,0.38821395]
[1748586846951,0.1876089,105910.0,105900.0,0.38821395]
[1748586847396,0.1876089,105910.0,105900.0,0.38921395]
[1748586847623,0.2201089,105910.0,105900.0,0.39168]
[1748586848084,0.2191089,105910.0,105900.0,0.39168]
[1748586848340,0.2191089,105910.0,105900.0,0.39268]
[1748586850130,0.2030089,105910.0,105900.0,0.39268]
[1748586852601,0.1866089,105910.0,105900.0,0.51473395]
[1748586853899,0.1866089,105910.0,105900.0,0.71303423]
[1748586854112,0.1866089,105910.0,105900.0,0.72247701]
[1748586854329,0.1866089,105910.0,105900.0,0.52417682]
[1748586854541,0.1866089,105910.0,105900.0,0.72247692]
[1748586855182,0.1866089,105910.0,105900.0,0.71303423]
[1748586855847,0.15826337,105920.0,105900.0,0.73191934]
[1748586856060,0.02832468,105910.0,105900.0,0.73191934]
[1748586856270,0.20772309,105910.0,105900.0,0.72247692]
[1748586856499,0.20772309,105910.0,105900.0,0.73191952]
[1748586856957,0.20772309,105910.0,105900.0,0.72247692]
[1748586857165,0.18883958,105910.0,105900.0,0.71303423]
[1748586857600,0.18883958,105910.0,105900.0,0.51473395]
[1748586857817,0.01888154,105920.0,105910.0,0.26784793]
[1748586858030,0.01888146,105920.0,105910.0,0.35890108]
[1748586858264,0.03776273,105920.0,105910.0,0.34945991]
[1748586858709,0.20768385,105930.0,105920.0,0.20770382]
[1748586858939,0.20768385,105930.0,105920.0,0.49049503]
[1748586858940,0.19824402,105930.0,105920.0,0.49049503]
[1748586859152,0.19824402,105930.0,105920.0,0.67931678]
[1748586859575,0.18880392,105930.0,105920.0,0.48105395]
[1748586860202,0.18980392,105930.0,105920.0,0.48105395]
[1748586861325,0.20550392,105930.0,105920.0,0.48105395]
[1748586861541,0.02713975,105930.0,105920.0,0.48105395]
[1748586861792,0.04601915,105930.0,105920.0,0.48105395]
[1748586862266,0.03657923,105930.0,105920.0,0.69864648]
[1748586862480,0.02087905,105930.0,105920.0,0.69864648]
[1748586862686,0.0303188,105930.0,105920.0,0.69864648]
[1748586863166,0.02087905,105930.0,105920.0,0.72696919]
[1748586863380,0.02087905,105930.0,105920.0,0.71752837]
[1748586863593,0.002,105930.0,105920.0,0.73640974]
[1748586863811,0.002,105930.0,105920.0,0.72696866]
[1748586864018,0.02087887,105930.0,105920.0,0.70808703]
[1748586864253,0.03031862,105930.0,105920.0,0.70808712]
[1748586864467,0.03975854,105930.0,105920.0,0.69864639]
[1748586864689,0.06349855,105930.0,105920.0,0.6892054]
[1748586864894,0.06349855,105930.0,105920.0,0.69864648]
[1748586865105,0.02935845,105930.0,105920.0,0.70808738]
[1748586865330,0.01887958,105930.0,105920.0,0.70808738]
[1748586865539,0.03775836,105930.0,105920.0,0.72696893]
[1748586865747,0.02831853,105930.0,105920.0,0.72696893]
[1748586865975,0.02831853,105930.0,105920.0,0.73640957]
[1748586866255,0.54408746,105940.0,105930.0,0.18880392]
[1748586866256,0.21352531,105940.0,105930.0,0.18880392]
[1748586867244,0.03417833,105940.0,105930.0,0.18880392]
[1748586867493,0.20380909,105950.0,105940.0,0.1887861]
[1748586867705,0.20380909,105950.0,105940.0,0.4852661]
[1748586867953,0.20380909,105950.0,105940.0,0.5786261]
[1748586868197,0.20380909,105950.0,105940.0,0.38984]
[1748586868198,0.22000909,105950.0,105940.0,0.38984]
[1748586868401,0.22000909,105950.0,105940.0,0.5786261]
[1748586868616,0.22000909,105950.0,105940.0,0.38984]
[1748586868843,0.22300909,105950.0,105940.0,0.38984]
[1748586869273,0.22500909,105950.0,105940.0,0.38984]
[1748586869483,0.02763832,105950.0,105940.0,0.68855829]
[1748586869666,0.22384465,105950.0,105940.0,0.68855856]
[1748586870130,0.20764465,105950.0,105940.0,0.69799768]
[1748586870359,0.20764465,105950.0,105940.0,0.67911935]
[1748586870571,0.2303066,105950.0,105940.0,0.48089395]
[1748586870778,0.2313066,105950.0,105940.0,0.48089395]
[1748586872138,0.1913066,105950.0,105940.0,0.48089395]
[1748586875462,0.1913066,105950.0,105940.0,0.39012]
[1748586875683,0.23112522,105940.0,105930.0,9.25e-05]
[1748586875899,0.23112522,105940.0,105930.0,0.48098645]
[1748586876767,0.23112522,105940.0,105930.0,0.18414645]
[1748586876981,0.23112522,105940.0,105930.0,0.48134645]
[1748586877640,0.23112522,105940.0,105930.0,0.48234645]
[1748586878504,0.20766425,105940.0,105930.0,0.48234645]
[1748586878742,0.20766425,105940.0,105930.0,0.69003048]
[1748586878958,0.01887815,105940.0,105930.0,0.69003048]
[1748586879171,0.01887815,105940.0,105930.0,0.69947031]
[1748586879172,0.1887861,105940.0,105930.0,0.69947031]
[1748586879406,0.02831736,105940.0,105930.0,0.69947032]
[1748586879616,0.21710373,105940.0,105930.0,0.69947049]
[1748586880044,0.2294254,105940.0,105930.0,0.48234645]
[1748586880706,0.2304254,105940.0,105930.0,0.48234645]
[1748586883972,0.2304254,105940.0,105930.0,0.4917677]
[1748586884182,0.2304254,105940.0,105930.0,0.1015677]
[1748586884396,0.2304254,105940.0,105930.0,0.4910477]
[1748586885111,0.2304254,105940.0,105930.0,0.1015677]
[1748586885329,0.2304254,105940.0,105930.0,0.0010925]
[1748586885534,0.2304254,105940.0,105930.0,0.2977325]
[1748586885749,0.2304254,105940.0,105930.0,0.0010925]
[1748586885965,0.2304254,105940.0,105930.0,0.2977325]
[1748586886393,0.1904254,105940.0,105930.0,0.2976525]
[1748586887517,0.1904254,105940.0,105930.0,0.2975725]
[1748586888634,0.1904254,105940.0,105930.0,0.38862645]
[1748586889076,0.1750254,105940.0,105930.0,0.39806664]
[1748586889291,0.16866443,105940.0,105930.0,0.60575067]
[1748586889517,0.16866443,105940.0,105930.0,0.58687056]
[1748586889949,0.16866443,105940.0,105930.0,0.59631066]
[1748586890197,0.16866443,105940.0,105930.0,0.39806664]
[1748586890403,0.16866443,105940.0,105930.0,0.40750674]
[1748586890841,0.16866443,105940.0,105930.0,0.39806664]
[1748586891292,0.16866443,105940.0,105930.0,0.59631066]
[1748586891781,0.1592254,105940.0,105930.0,0.38862645]
[1748586892838,0.17810373,105940.0,105930.0,0.61141048]
[1748586893084,0.17810373,105940.0,105930.0,0.61141066]
[1748586893333,0.17810373,105940.0,105930.0,0.59631066]
[1748586893847,0.1686647,105940.0,105930.0,0.39806664]
[1748586894336,0.1286647,105940.0,105930.0,0.49106664]
[1748586894789,0.1286647,105940.0,105930.0,0.67987056]
[1748586895021,0.1286647,105940.0,105930.0,0.49106664]
[1748586895266,0.1286647,105940.0,105930.0,0.48162645]
[1748586895702,0.1286647,105940.0,105930.0,0.67987047]
[1748586895913,0.1286647,105940.0,105930.0,0.48162645]
[1748586897031,0.01987815,105940.0,105930.0,0.69874987]
[1748586897269,0.22754232,105940.0,105930.0,0.69875005]
[1748586898188,0.22754232,105940.0,105930.0,0.71525005]
[1748586898411,0.22754232,105940.0,105930.0,0.69875005]
[1748586899340,0.2272673,105940.0,105930.0,0.69875005]
[1748586899818,0.01960225,105940.0,105930.0,0.70818971]
[1748586900057,0.00072498,105940.0,105930.0,1.41897928]
[1748586900287,0.0290411,105940.0,105930.0,1.41897928]
[1748586901277,0.0290411,105940.0,105930.0,1.41797928]
[1748586901792,0.0290411,105940.0,105930.0,1.41997928]
[1748586902022,0.0290411,105940.0,105930.0,1.42197928]
[1748586902267,0.0290411,105940.0,105930.0,1.21515328]
[1748586902742,0.01016357,105940.0,105930.0,1.21515328]
[1748586903025,0.03848031,105940.0,105930.0,1.21515328]
[1748586903487,0.03848022,105940.0,105930.0,1.21515328]
[1748586903715,0.04791996,105940.0,105930.0,1.21515328]
[1748586904200,0.21782844,105940.0,105930.0,1.02287047]
[1748586904440,0.21782844,105940.0,105930.0,1.03231039]
[1748586904668,0.21782844,105940.0,105930.0,1.04175014]
[1748586904905,0.21782844,105940.0,105930.0,1.0511898]
[1748586905155,0.21782844,105940.0,105930.0,1.0825898]
[1748586905395,0.00072498,105940.0,105930.0,1.49646037]
[1748586905646,0.01960242,105940.0,105930.0,1.49646037]
[1748586905900,0.01960207,105940.0,105930.0,1.49646037]
[1748586906438,0.03847969,105940.0,105930.0,1.49646037]
[1748586906885,0.01960207,105940.0,105930.0,1.49646037]
[1748586907118,0.01960225,105940.0,105930.0,1.49646037]
[1748586908273,0.18725119,105950.0,105940.0,0.19822522]
[1748586908484,0.18725119,105950.0,105940.0,0.2987182]
[1748586908688,0.20612774,105950.0,105940.0,0.30815697]
[1748586908905,0.02831451,105950.0,105940.0,0.31759565]
[1748586909126,0.21708279,105950.0,105940.0,0.2987182]
[1748586909610,0.24846258,105960.0,105950.0,0.18876828]
[1748586909841,0.00943814,105950.0,105940.0,0.64815635]
[1748586910059,0.22958799,105960.0,105950.0,0.2908066]
[1748586910308,0.22015047,105960.0,105950.0,0.0926]
[1748586911019,0.56015047,105960.0,105950.0,0.38828]
[1748586911242,0.56115047,105960.0,105950.0,0.38832]
[1748586911453,0.56215047,105960.0,105950.0,0.38832]
[1748586912147,0.22215047,105960.0,105950.0,0.38832]
[1748586913295,0.22215047,105960.0,105950.0,0.47937395]
[1748586914199,0.22215047,105960.0,105950.0,0.48881236]
[1748586914420,0.22215047,105960.0,105950.0,0.47937395]
[1748586914641,0.06171122,105960.0,105950.0,0.69645639]
[1748586914872,0.07114865,105960.0,105950.0,0.69645639]
[1748586915089,0.26833664,105960.0,105950.0,0.67758055]
[1748586915320,0.23902542,105960.0,105950.0,0.68701878]
[1748586915559,0.22015047,105960.0,105950.0,0.48037395]
[1748586916465,0.22015047,105960.0,105950.0,0.67858046]
[1748586916947,0.22015047,105960.0,105950.0,0.48037395]
[1748586917178,0.22015047,105960.0,105950.0,0.18465395]
[1748586917415,0.22015047,105960.0,105950.0,0.48069395]
[1748586919162,0.22015047,105960.0,105950.0,0.49013236]
[1748586919684,0.22015047,105960.0,105950.0,0.48069395]
[1748586922865,0.18875047,105960.0,105950.0,1.00946223]
[1748586923102,0.18875047,105960.0,105950.0,0.82069395]
[1748586923604,0.20485047,105960.0,105950.0,0.82069395]
[1748586923827,0.22115047,105960.0,105950.0,0.82069395]
[1748586926666,0.22115047,105960.0,105950.0,0.82073395]
[1748586929681,0.22115047,105960.0,105950.0,0.43209395]
[1748586929979,0.22115047,105960.0,105950.0,0.82001395]
[1748586930504,0.22115047,105960.0,105950.0,0.09209395]
[1748586930745,0.22115047,105960.0,105950.0,0.47993395]
[1748586932101,0.22115047,105960.0,105950.0,0.00104]
[1748586932630,0.22115047,105960.0,105950.0,0.2964]
[1748586934347,0.22115047,105960.0,105950.0,0.00104]
[1748586934579,0.23017896,105960.0,105950.0,0.29624]
[1748586934810,0.22115047,105960.0,105950.0,0.29624]
[1748586935040,0.29115047,105960.0,105950.0,0.29624]
[1748586936488,0.18115047,105960.0,105950.0,0.29624]
[1748586940035,0.25115047,105960.0,105950.0,0.29624]
[1748586940716,0.18115047,105960.0,105950.0,0.29624]
[1748586943414,0.14115047,105960.0,105950.0,0.29624]
[1748586945728,0.20762506,105960.0,105950.0,0.58550055]
[1748586946169,0.20762506,105960.0,105950.0,0.29030055]
[1748586946398,0.19818781,105960.0,105950.0,0.67750055]
[1748586946894,0.19818781,105960.0,105950.0,0.67750064]
[1748586947864,0.19818781,105960.0,105950.0,0.48873236]
[1748586948077,0.18875047,105960.0,105950.0,0.48873236]
[1748586950570,0.18875047,105960.0,105950.0,0.49817068]
[1748586950787,0.18875047,105960.0,105950.0,0.68693896]
[1748586951023,0.031,105970.0,105960.0,0.19818799]
[1748586951242,0.20760583,105970.0,105960.0,0.29867919]
[1748586951478,0.2170421,105970.0,105960.0,0.29867937]
[1748586951708,0.20760583,105970.0,105960.0,0.29867937]
[1748586952127,0.19816929,105970.0,105960.0,0.29867937]
[1748586952330,0.19916929,105970.0,105960.0,0.29867937]
[1748586952539,0.20016929,105970.0,105960.0,0.29867937]
[1748586952751,0.20603266,105970.0,105960.0,0.09105395]
[1748586952956,0.20603266,105970.0,105960.0,0.1028506]
[1748586953379,0.20960565,105970.0,105960.0,0.30103841]
[1748586953588,0.20960565,105970.0,105960.0,0.29867928]
[1748586953981,0.20960565,105970.0,105960.0,0.29867937]
[1748586954372,0.20960565,105970.0,105960.0,0.30811671]
[1748586954983,0.03030819,105970.0,105960.0,0.35869077]
[1748586955226,0.03974464,105970.0,105960.0,0.35869077]
[1748586956211,0.03874464,105970.0,105960.0,0.35869077]
[1748586956453,0.03774464,105970.0,105960.0,0.35869077]
[1748586956689,0.03774464,105970.0,105960.0,0.35969077]
[1748586956942,0.03774437,105970.0,105960.0,1.12921677]
[1748586957188,0.04718091,105970.0,105960.0,0.66240077]
[1748586957906,0.22851951,105990.0,105960.0,0.62799217]
[1748586958161,0.02830552,105980.0,105970.0,0.72239569]
[1748586958407,0.02830552,105980.0,105970.0,0.73543699]
[1748586958609,0.04717655,105980.0,105970.0,0.73543699]
[1748586958818,0.21971221,105990.0,105970.0,0.73543699]
[1748586959052,0.21971221,105990.0,105980.0,0.21702117]
[1748586959053,0.21700034,105990.0,105980.0,0.21702117]
[1748586959262,0.0377377,105990.0,105980.0,0.65751023]
[1748586959487,0.04731913,105990.0,105980.0,0.65751023]
[1748586959692,0.03788419,105990.0,105980.0,0.65751023]
[1748586960109,0.03788419,105990.0,105980.0,0.64807512]
[1748586960324,0.04731904,105990.0,105980.0,0.64807512]
[1748586960531,0.03788419,105990.0,105980.0,0.66694543]
[1748586960740,0.03788419,105990.0,105980.0,0.63863983]
[1748586960948,0.22658194,105990.0,105980.0,0.63863983]
[1748586961631,0.21714763,105990.0,105980.0,0.62920445]
[1748586961864,0.21714763,105990.0,105980.0,0.63864001]
[1748586962070,0.21714763,105990.0,105980.0,0.65751068]
[1748586962288,0.21714763,105990.0,105980.0,0.68931086]
[1748586962289,0.02845059,105990.0,105980.0,0.68931086]
[1748586962511,0.20771323,105990.0,105980.0,0.68931086]
[1748586962730,0.19827856,105990.0,105980.0,0.64520445]
[1748586962947,0.18884371,105990.0,105980.0,0.72481395]
[1748586963186,0.22084371,105990.0,105980.0,0.18325395]
[1748586963417,0.22084371,105990.0,105980.0,0.49776]
[1748586964503,0.22084371,105990.0,105980.0,0.49976]
[1748586965839,0.22084371,105990.0,105980.0,0.50919565]
[1748586966685,0.22084371,105990.0,105980.0,0.49976]
[1748586968035,0.22084371,105990.0,105980.0,0.11348]
[1748586968264,0.22084371,105990.0,105980.0,0.40782605]
[1748586969144,0.22084371,105990.0,105980.0,0.3854]
[1748586969359,0.22084371,105990.0,105980.0,0.38536]
[1748586972444,0.23025041,105980.0,105970.0,0.40752]
[1748586972659,0.23025041,105980.0,105970.0,0.88365395]
[1748586972860,0.23025041,105980.0,105970.0,0.88361395]
[1748586973450,0.23025041,105980.0,105970.0,0.49857395]
[1748586973658,0.23025041,105980.0,105970.0,0.59009395]
[1748586973953,0.23025041,105980.0,105970.0,0.40752]
[1748586974244,0.23025041,105980.0,105970.0,0.38696]
[1748586974558,0.23025041,105980.0,105970.0,0.38896]
[1748586981873,0.23025041,105980.0,105970.0,0.09552]
[1748586982136,0.23025041,105980.0,105970.0,0.38836]
[1748586985099,0.23025041,105980.0,105970.0,0.38828]
[1748586991392,0.23968588,105980.0,105970.0,0.48877058]
[1748586991608,0.23025041,105980.0,105970.0,0.48877058]
[1748586992083,0.23025041,105980.0,105970.0,0.47933395]
[1748586995507,0.23025041,105980.0,105970.0,0.18657395]
[1748586995742,0.23907888,105980.0,105970.0,0.38852]
[1748586995988,0.23025041,105980.0,105970.0,0.38852]
[1748586996233,0.23907931,105980.0,105970.0,0.38852]
[1748586997161,0.23907928,105980.0,105970.0,0.38848]
[1748586997630,0.23907945,105980.0,105970.0,0.38848]
[1748586998108,0.23907946,105980.0,105970.0,0.38848]
[1748586998778,0.23907946,105980.0,105970.0,0.09552]
[1748586998999,0.23907961,105980.0,105970.0,0.38836]
[1748586999463,0.23025041,105980.0,105970.0,0.38836]
[1748586999925,0.23908188,105980.0,105970.0,0.38836]
[1748587000136,0.23025041,105980.0,105970.0,0.38836]
[1748587000376,0.23908188,105980.0,105970.0,0.38836]
[1748587000580,0.23908193,105980.0,105970.0,0.38836]
[1748587001282,0.23025041,105980.0,105970.0,0.38836]
[1748587002200,0.23025041,105980.0,105970.0,0.38816]
[1748587002423,0.23908194,105980.0,105970.0,0.38816]
[1748587002646,0.23908195,105980.0,105970.0,0.38816]
[1748587002873,0.23908199,105980.0,105970.0,0.38816]
[1748587003324,0.23025041,105980.0,105970.0,0.38816]
[1748587003531,0.23908444,105980.0,105970.0,0.38816]
[1748587003750,0.23908441,105980.0,105970.0,0.38816]
[1748587003987,0.74610095,105980.0,105970.0,0.004]
[1748587004232,0.78708275,105980.0,105970.0,0.004]
[1748587004471,0.80410204,105980.0,105970.0,0.004]
[1748587005186,0.80410204,105980.0,105970.0,0.002]
[1748587005187,0.89510204,105980.0,105970.0,0.002]
[1748587005431,0.23902488,105960.0,105950.0,4e-05]